bitfinex-derivatives/quotes_SOLF0:USTF0_20241224
["timestamp","ask_amount","ask_price","bid_price","bid_amount"]
[1735057743048,2.5371,197.25,197.18,2.5378]
[1735057743247,4.7249,197.27,197.18,2.5378]
[1735057744554,2.5372,197.24,197.18,2.5378]
[1735057745356,2.5372,197.24,197.14,3.84]
[1735057745357,3.84,197.3,197.15,21.63550313]
[1735057745955,2.5367,197.27,197.21,2.5374]
[1735057746154,2.5367,197.27,197.15,21.63550313]
[1735057746460,2.5367,197.27,197.2,2.5375]
[1735057746661,2.5368,197.26,197.2,2.5375]
[1735057750163,3.84,197.31,197.18,13.58354005]
[1735057750358,2.5367,197.27,197.22,2.5373]
[1735057750960,2.5367,197.27,197.19,13.58354005]
[1735057751564,2.5367,197.27,197.22,2.5373]
[1735057752063,2.5366,197.28,197.22,2.5373]
[1735057753656,3.84,197.31,197.19,13.58354005]
[1735057753657,2.5372,197.24,197.19,13.58354005]
[1735057753862,3.84,197.31,197.18,2.5379]
[1735057754260,2.5373,197.23,197.18,2.5379]
[1735057754558,2.5373,197.23,197.14,2.96649492]
[1735057754758,13.58354005,197.29,197.15,13.58354005]
[1735057755461,2.5374,197.22,197.16,2.538]
[1735057758758,13.58354005,197.2,197.05,2.5396]
[1735057758966,13.58354005,197.17,197.04,13.58354005]
[1735057759269,3.84,197.16,197.04,13.58354005]
[1735057760366,1.5986,197.19,197.04,13.58354005]
[1735057760567,1.5986,197.19,197.07,13.58354005]
[1735057760764,1.5986,197.19,197.1,13.58354005]
[1735057761072,6.89445665,197.25,197.13,13.58354005]
[1735057761463,2.5373,197.23,197.16,2.5381]
[1735057761667,2.5373,197.23,197.16,16.12164005]
[1735057763264,18.32604005,197.28,197.16,13.58354005]
[1735057763568,4.7425,197.28,197.19,13.58354005]
[1735057763962,18.32604005,197.28,197.16,13.58354005]
[1735057764166,4.7425,197.28,197.16,13.58354005]
[1735057764371,4.7425,197.28,197.19,13.58354005]
[1735057764567,3.1586,197.28,197.19,13.58354005]
[1735057765272,2.537,197.26,197.19,13.58354005]
[1735057765572,3.1586,197.28,197.16,13.58354005]
[1735057766272,2.5375,197.22,197.16,16.12164005]
[1735057766773,3.74,197.24,197.11,16.72224005]
[1735057766968,2.5379,197.19,197.13,2.5386]
[1735057767373,2.5377,197.2,197.13,2.5386]
[1735057767576,3.74,197.24,197.14,16.12194005]
[1735057768168,2.5376,197.22,197.15,2.5383]
[1735057768373,3.74,197.24,197.14,13.58354005]
[1735057768577,6.2773,197.24,197.17,2.5381]
[1735057769477,2.5373,197.24,197.17,2.5381]
[1735057769977,3.74,197.27,197.17,2.5381]
[1735057770181,2.5374,197.23,197.17,2.5381]
[1735057771074,2.5377,197.21,197.14,16.12204005]
[1735057771275,2.5377,197.21,197.11,3.1387]
[1735057771276,13.58354005,197.24,197.11,3.1387]
[1735057771577,2.5381,197.18,197.12,2.5387]
[1735057773873,3.74,197.21,197.1,16.12244005]
[1735057774070,1.5804,197.2,197.1,16.12244005]
[1735057774271,1.5804,197.2,197.07,13.58354005]
[1735057774473,1.5804,197.2,197.1,13.58354005]
[1735057775680,2.5381,197.17,197.11,2.5389]
[1735057775876,1.5804,197.2,197.1,13.58354005]
[1735057776075,2.5384,197.15,197.1,13.58354005]
[1735057776277,2.5384,197.15,197.09,2.539]
[1735057776571,1.5804,197.2,197.09,2.539]
[1735057776779,1.5804,197.2,197.04,28.69753575]
[1735057776780,1.5991,197.19,197.07,2.5394]
[1735057777174,2.5388,197.12,197.07,2.5394]
[1735057778077,2.5389,197.11,197.05,2.5396]
[1735057778277,13.58354005,197.15,197.05,2.5396]
[1735057779584,2.539,197.1,197.05,2.5396]
[1735057780684,2.5388,197.12,197.06,2.5395]
[1735057781786,3.74,197.16,197.04,2.5397]
[1735057783082,2.539,197.1,197.04,2.5397]
[1735057783289,13.58354005,197.12,196.94,3.74]
[1735057783481,1.5622,197.09,196.98,13.58354005]
[1735057783676,2.5397,197.05,196.98,13.58354005]
[1735057783882,2.5397,197.05,196.98,16.12404005]
[1735057785285,3.2125,197.08,196.98,13.58354005]
[1735057785483,2.54,197.03,196.98,13.58354005]
[1735057787886,2.5401,197.02,196.98,13.58354005]
[1735057789579,3.2125,197.08,196.98,13.58354005]
[1735057790788,2.5396,197.06,196.99,2.5403]
[1735057791490,3.2125,197.08,197.01,13.58354005]
[1735057791491,1.6154,197.08,197.01,13.58354005]
[1735057791688,3.72,197.13,197.01,13.58354005]
[1735057792083,2.539,197.11,197.01,13.58354005]
[1735057792283,2.539,197.11,197.04,13.58354005]
[1735057793295,2.539,197.11,197.05,2.5395]
[1735057794596,2.5387,197.12,197.05,2.5395]
[1735057794893,3.72,197.15,197.05,2.5395]
[1735057795492,13.58354005,197.13,197.0,3.72]
[1735057795792,3.72,197.15,197.04,13.58354005]
[1735057795992,4.7144,197.17,197.04,13.58354005]
[1735057796193,4.7144,197.17,197.07,13.58354005]
[1735057796390,17.30354005,197.22,197.1,13.58354005]
[1735057796898,3.72,197.22,197.1,13.58354005]
[1735057797094,2.5376,197.22,197.15,2.5383]
[1735057797292,3.72,197.24,197.15,2.5383]
[1735057797687,3.72,197.24,197.1,13.58354005]
[1735057797688,2.5378,197.2,197.14,2.5385]
[1735057797889,3.72,197.24,197.14,2.5385]
[1735057798093,13.58354005,197.22,197.1,13.58354005]
[1735057798294,2.5382,197.16,197.07,13.58354005]
[1735057798491,13.58354005,197.22,197.07,13.58354005]
[1735057798798,3.72,197.21,197.07,13.58354005]
[1735057798998,2.5382,197.16,197.1,2.539]
[1735057800899,2.5383,197.15,197.09,2.539]
[1735057801499,3.72,197.21,197.07,16.12284005]
[1735057801695,13.58354005,197.16,197.01,2.7349]
[1735057801902,8.5643,197.15,197.02,13.58354005]
[1735057802400,2.5392,197.09,197.03,2.5398]
[1735057802595,4.8443,197.15,197.05,13.58354005]
[1735057802791,3.1895,197.15,197.09,2.539]
[1735057803397,2.5385,197.14,197.08,16.12284005]
[1735057803700,3.1895,197.15,197.08,13.58354005]
[1735057803903,3.1895,197.15,197.04,2.5398]
[1735057804495,2.5391,197.1,197.04,2.5398]
[1735057804801,3.1895,197.15,197.04,2.5398]
[1735057805102,2.5388,197.12,197.04,2.5398]
[1735057805400,3.1895,197.15,197.08,13.58354005]
[1735057805701,3.1895,197.15,197.02,13.58354005]
[1735057806200,3.1895,197.15,197.01,1.6006]
[1735057806402,2.5393,197.09,197.03,2.5399]
[1735057806603,3.1895,197.15,197.03,2.5399]
[1735057807104,16.77304005,197.15,197.03,2.5399]
[1735057807796,2.5393,197.09,197.03,2.5399]
[1735057808302,2.5395,197.07,197.01,16.12364005]
[1735057809500,16.77304005,197.15,197.01,16.12364005]
[1735057809700,2.5396,197.06,197.01,2.5401]
[1735057809902,3.72,197.1,196.97,2.5407]
[1735057810094,3.72,197.1,196.96,15.18694005]
[1735057810095,2.5401,197.02,196.96,15.18694005]
[1735057810493,1.5876,197.09,196.96,15.18694005]
[1735057810704,1.5876,197.09,196.99,13.58354005]
[1735057810900,2.5398,197.05,196.99,13.58354005]
[1735057811801,1.5876,197.09,196.95,2.541]
[1735057811802,2.5402,197.01,196.95,2.541]
[1735057812107,2.5402,197.01,196.98,13.58354005]
[1735057812509,2.5402,197.01,196.95,16.12454005]
[1735057812900,15.17114005,197.09,196.95,2.541]
[1735057813109,2.5404,197.0,196.95,2.541]
[1735057813710,1.5876,197.09,196.97,13.58354005]
[1735057813897,1.5876,197.09,197.02,13.58354005]
[1735057814100,2.5396,197.06,197.02,13.58354005]
[1735057814906,1.5876,197.09,197.02,13.58354005]
[1735057815107,2.5396,197.05,197.02,13.58354005]
[1735057815296,2.5396,197.05,196.99,16.12384005]
[1735057815503,2.5395,197.06,197.01,2.5401]
[1735057816402,1.5876,197.09,197.01,2.5401]
[1735057816603,1.5876,197.09,196.95,3.72]
[1735057816812,1.5876,197.09,196.92,56.0132861]
[1735057816813,13.58354005,197.07,196.93,13.58354005]
[1735057817108,5.2315,197.06,196.93,13.58354005]
[1735057817304,2.5404,197.0,196.93,2.5411]
[1735057817513,13.58354005,197.04,196.93,2.5411]
[1735057817810,13.58354005,197.04,196.9,56.0132861]
[1735057818513,2.5408,196.96,196.9,58.5547861]
[1735057818805,2.5408,196.96,196.9,2.5415]
[1735057819202,2.5408,196.96,196.88,13.58354005]
[1735057819203,39.71539662,197.14,196.91,13.58354005]
[1735057819413,2.5394,197.08,197.01,2.5401]
[1735057819708,6.89445665,197.11,196.85,3.1459]
[1735057819903,6.89445665,197.11,197.04,13.58354005]
[1735057820211,6.89445665,197.11,197.07,13.58354005]
[1735057820400,6.89445665,197.11,197.07,16.12284005]
[1735057820709,1.5038,197.19,197.07,2.5393]
[1735057820910,2.5384,197.16,197.07,2.5393]
[1735057821112,3.1134,197.18,197.07,2.5393]
[1735057821510,2.5383,197.16,197.09,2.5391]
[1735057821708,3.1134,197.18,197.02,1.1324]
[1735057822106,13.58354005,197.17,197.05,13.58354005]
[1735057822301,13.58354005,197.17,197.01,3.0533]
[1735057822507,13.58354005,197.14,197.02,2.54]
[1735057822902,13.58354005,197.11,196.97,56.0132861]
[1735057823105,2.5395,197.06,196.98,2.5404]
[1735057823511,2.5395,197.06,196.99,13.58354005]
[1735057823912,2.5395,197.06,196.97,13.58354005]
[1735057824213,1.502,197.1,196.97,13.58354005]
[1735057824714,2.5395,197.06,197.0,2.5402]
[1735057826512,1.502,197.1,197.0,2.5402]
[1735057826713,2.5394,197.07,197.0,2.5402]
[1735057827316,1.502,197.1,196.96,21.77836029]
[1735057827514,1.502,197.1,197.0,21.77836029]
[1735057827815,2.5388,197.12,197.05,2.5396]
[1735057828012,21.77836029,197.12,196.91,1.1324]
[1735057828219,21.77836029,197.12,196.94,21.77836029]
[1735057829307,2.5401,197.02,196.96,2.5409]
[1735057830118,2.5394,197.07,196.98,2.5405]
[1735057830313,21.77836029,197.12,196.98,2.5405]
[1735057831019,21.77836029,197.12,196.94,21.77836029]
[1735057831721,2.5397,197.05,196.98,2.5405]
[1735057831912,21.77836029,197.12,196.98,2.5405]
[1735057832112,21.77836029,197.12,196.94,21.77836029]
[1735057832316,2.5398,197.04,196.97,2.5406]
[1735057832714,21.77836029,197.12,196.94,21.77836029]
[1735057833018,21.77836029,197.08,196.92,3.2791]
[1735057833315,21.77836029,197.04,196.87,21.77836029]
[1735057833821,4.7538,197.07,196.91,21.77836029]
[1735057834314,4.7538,197.07,196.95,21.77836029]
[1735057834718,2.5395,197.06,197.0,2.5403]
[1735057834916,6.89445665,197.16,196.99,21.77836029]
[1735057835220,2.5387,197.13,197.03,21.77836029]
[1735057835419,6.89445665,197.16,197.03,21.77836029]
[1735057835723,9.43275665,197.16,197.09,2.5392]
[1735057835913,3.1639,197.19,197.07,21.77836029]
[1735057836313,2.5383,197.16,197.08,2.5393]
[1735057836518,3.1639,197.19,197.07,21.77836029]
[1735057836919,2.5388,197.12,197.07,21.77836029]
[1735057837318,2.5387,197.14,197.07,21.77836029]
[1735057837518,1.6533,197.18,197.07,21.77836029]
[1735057837711,3.1639,197.19,197.07,21.77836029]
[1735057837918,2.538,197.18,197.11,24.31716029]
[1735057838217,27.66268778,197.26,197.11,21.77836029]
[1735057838416,2.5378,197.2,197.13,2.5386]
[1735057838722,3.2148,197.25,197.11,21.77836029]
[1735057839815,2.5382,197.17,197.11,21.77836029]
[1735057840622,2.5378,197.2,197.12,2.5387]
[1735057840822,3.2148,197.25,197.12,2.5387]
[1735057841324,2.5376,197.21,197.11,21.77836029]
[1735057841519,3.2148,197.25,197.11,21.77836029]
[1735057841914,2.538,197.18,197.11,24.31716029]
[1735057842119,3.2148,197.25,197.07,21.77836029]
[1735057842324,21.77836029,197.23,197.05,21.77836029]
[1735057843019,21.77836029,197.23,197.0,26.18086029]
[1735057843224,21.77836029,197.23,197.04,2.5397]
[1735057843419,21.77836029,197.23,197.0,26.18086029]
[1735057843822,21.77836029,197.19,197.0,4.4025]
[1735057844014,1.5979,197.18,197.0,26.18086029]
[1735057845425,2.539,197.1,197.02,2.5399]
[1735057845625,1.5979,197.18,197.0,26.18086029]
[1735057846326,2.5394,197.07,197.0,28.72106029]
[1735057846927,1.5979,197.18,197.0,25.05206029]
[1735057847321,21.77836029,197.15,196.96,21.77836029]
[1735057847524,3.1857,197.14,196.96,21.77836029]
[1735057848225,21.77836029,197.11,196.92,3.1787]
[1735057848416,1.5084,197.1,196.92,3.1787]
[1735057848614,1.5084,197.1,196.94,21.77836029]
[1735057850028,21.77836029,197.07,196.89,21.77836029]
[1735057850722,2.5411,196.94,196.89,21.77836029]
[1735057850922,21.77836029,197.07,196.89,21.77836029]
[1735057851425,2.5413,196.92,196.85,27.50516029]
[1735057851822,21.77836029,197.03,196.85,24.96296029]
[1735057852016,2.5415,196.91,196.85,24.96296029]
[1735057852625,2.5417,196.89,196.82,2.14376874]
[1735057853421,2.5419,196.88,196.82,2.14376874]
[1735057853625,21.77836029,196.99,196.82,2.14376874]
[1735057853823,21.77836029,196.99,196.82,23.92212903]
[1735057854028,2.5417,196.89,196.82,23.92212903]
[1735057854526,2.5417,196.89,196.82,26.46462903]
[1735057854722,21.77836029,196.99,196.82,23.92212903]
[1735057855027,2.5415,196.91,196.82,23.92212903]
[1735057855715,4.6695,197.02,196.86,21.77836029]
[1735057855922,4.6695,197.02,196.85,21.77836029]
[1735057856621,4.6695,197.02,196.89,21.77836029]
[1735057856816,1.06584762,197.07,196.93,21.77836029]
[1735057857019,2.5403,197.01,196.93,21.77836029]
[1735057857220,20.76823113,197.12,196.97,21.77836029]
[1735057857221,6.89445665,197.12,196.97,21.77836029]
[1735057857422,6.89445665,197.12,197.02,21.77836029]
[1735057857822,6.89445665,197.12,197.06,21.77836029]
[1735057858429,2.5388,197.12,197.06,21.77836029]
[1735057859122,21.77836029,197.15,196.82,173.80728157]
[1735057859322,4.7861,197.14,196.97,2.5406]
[1735057860521,4.7861,197.14,196.96,21.77836029]
[1735057860922,4.7861,197.14,196.99,2.5403]
[1735057861122,4.7861,197.14,196.97,24.49096029]
[1735057861624,4.7861,197.14,196.98,2.5406]
[1735057862327,2.5395,197.06,196.98,2.5406]
[1735057862928,4.7861,197.14,196.98,2.5406]
[1735057863323,4.7861,197.14,196.97,24.49096029]
[1735057863621,21.77836029,197.19,197.01,21.77836029]
[1735057863828,21.77836029,197.19,197.05,21.77836029]
[1735057864028,21.77836029,197.19,197.06,2.5394]
[1735057864218,26.50326029,197.23,197.01,21.77836029]
[1735057864427,26.50326029,197.23,197.05,21.77836029]
[1735057864919,2.5382,197.17,197.08,2.5391]
[1735057865321,2.5379,197.18,197.06,3.6641]
[1735057865521,26.50326029,197.23,197.06,3.6641]
[1735057865928,2.5383,197.16,197.08,2.5392]
[1735057866929,26.50326029,197.23,197.06,3.6643]
[1735057867124,26.50326029,197.23,197.05,21.77836029]
[1735057867427,26.50326029,197.23,197.01,21.77836029]
[1735057867626,26.50326029,197.23,197.05,2.5397]
[1735057868530,26.50326029,197.23,197.01,21.77836029]
[1735057868731,26.50326029,197.23,197.05,21.77836029]
[1735057869630,2.5387,197.13,197.05,24.31796029]
[1735057869829,2.5387,197.13,197.05,2.5396]
[1735057870234,21.77836029,197.19,197.01,21.77836029]
[1735057870730,2.5394,197.07,197.01,21.77836029]
[1735057871124,21.77836029,197.15,196.99,1.1248]
[1735057871326,2.5398,197.04,196.98,1.5768]
[1735057871536,1.5692,197.14,196.98,1.5768]
[1735057871727,2.5396,197.05,196.99,2.5404]
[1735057871922,1.5692,197.14,196.98,1.5768]
[1735057872328,21.77836029,197.11,196.93,21.77836029]
[1735057872634,1.5094,197.1,196.93,21.77836029]
[1735057872833,3.1454,197.1,196.93,21.77836029]
[1735057874137,2.5404,196.99,196.93,21.77836029]
[1735057874333,3.1454,197.1,196.93,21.77836029]
[1735057874532,21.77836029,197.07,196.89,21.77836029]
[1735057874726,1.6388,197.06,196.89,21.77836029]
[1735057874931,2.5407,196.97,196.9,2.5416]
[1735057875137,1.6388,197.06,196.89,21.77836029]
[1735057875429,3.1454,197.1,196.93,21.77836029]
[1735057876235,3.1454,197.1,196.97,21.77836029]
[1735057876735,2.5397,197.05,196.99,2.5404]
[1735057876938,3.1454,197.1,196.99,2.5404]
[1735057877239,2.5399,197.03,196.98,3.0792]
[1735057877428,6.89445665,197.19,197.0,21.77836029]
[1735057877747,3.1169,197.2,197.05,21.77836029]
[1735057878043,3.1169,197.2,197.05,24.31786029]
[1735057878340,3.1169,197.2,197.05,21.77836029]
[1735057878527,2.5383,197.16,197.05,21.77836029]
[1735057878729,3.1169,197.2,197.04,2.5398]
[1735057878926,3.1169,197.2,197.01,1.1245]
[1735057879127,2.5385,197.15,197.02,2.5399]
[1735057879337,3.1169,197.2,197.0,21.77836029]
[1735057879535,21.77836029,197.18,197.0,21.77836029]
[1735057879839,2.5395,197.06,197.0,21.77836029]
[1735057880037,21.77836029,197.18,197.0,21.77836029]
[1735057880238,2.54,197.04,196.98,3.0792]
[1735057880940,2.54,197.03,196.98,3.0792]
[1735057881437,2.54,197.03,196.96,21.77836029]
[1735057881635,2.54,197.03,196.96,24.31906029]
[1735057882239,31.78971694,197.2,196.98,2.5406]
[1735057882441,0.7747203,197.19,197.0,21.77836029]
[1735057882740,2.5392,197.09,197.01,2.5401]
[1735057883042,31.78971694,197.2,197.01,2.5401]
[1735057883043,24.89526029,197.2,197.01,2.5401]
[1735057883243,0.77442895,197.19,197.01,2.5401]
[1735057883541,2.539,197.11,197.04,2.5397]
[1735057884144,2.5387,197.12,197.05,2.5395]
[1735057885738,2.5383,197.16,197.05,2.5395]
[1735057886038,24.89526029,197.2,197.05,2.5395]
[1735057886441,3.1169,197.2,197.07,2.5394]
[1735057887546,2.5386,197.14,197.07,2.5394]
[1735057888438,2.5382,197.17,197.09,2.5391]
[1735057888638,1.6522,197.22,197.07,21.77836029]
[1735057889545,2.5382,197.17,197.1,2.539]
[1735057890047,1.06494979,197.24,197.11,21.77836029]
[1735057890346,55.3819497,197.3,197.19,21.77836029]
[1735057890542,57.9184497,197.3,197.21,2.5375]
[1735057890747,27.66268778,197.3,197.21,2.5375]
[1735057890941,27.66268778,197.3,197.18,21.77836029]
[1735057891540,2.5367,197.29,197.18,21.77836029]
[1735057891743,2.5367,197.29,197.19,1.5353]
[1735057892343,2.5367,197.29,197.21,2.5376]
[1735057894342,2.5367,197.28,197.21,2.5376]
[1735057894841,21.77836029,197.33,197.12,1.1214]
[1735057895055,21.77836029,197.29,197.07,3.1368]
[1735057895350,2.5389,197.12,197.07,3.1368]
[1735057895552,21.77836029,197.22,197.07,3.1368]
[1735057896040,4.7942,197.28,197.07,3.1368]
[1735057896243,0.77428903,197.27,197.07,3.1368]
[1735057896447,4.7942,197.28,197.1,24.31736029]
[1735057897450,4.7942,197.28,197.1,21.77836029]
[1735057898248,2.5377,197.2,197.13,2.5386]
[1735057898446,4.7942,197.28,197.1,21.77836029]
[1735057898642,4.7942,197.28,197.07,3.1368]
[1735057898843,4.7942,197.28,197.12,21.77836029]
[1735057900544,2.5377,197.2,197.13,2.5385]
[1735057901451,2.5376,197.22,197.15,2.5384]
[1735057901642,4.7942,197.28,197.16,21.77836029]
[1735057902752,2.5376,197.21,197.16,21.77836029]
[1735057903347,4.7942,197.28,197.16,21.77836029]
[1735057903553,2.5367,197.29,197.23,2.5373]
[1735057903749,4.7251,197.38,197.2,21.77836029]
[1735057904047,11.61955665,197.38,197.2,21.77836029]
[1735057904954,2.5361,197.33,197.24,2.5372]
[1735057905157,11.61955665,197.38,197.24,2.5372]
[1735057905353,4.7251,197.38,197.24,2.5372]
[1735057905555,2.5359,197.34,197.28,2.5367]
[1735057905757,4.7251,197.38,197.24,21.77836029]
[1735057905950,4.7251,197.38,197.22,2.7344]
[1735057906145,21.77836029,197.35,197.2,21.77836029]
[1735057906352,21.77836029,197.35,197.16,21.77836029]
[1735057906565,21.77836029,197.31,197.16,21.77836029]
[1735057906857,1.6023,197.3,197.16,21.77836029]
[1735057907851,1.6023,197.3,197.12,21.77836029]
[1735057908049,1.6023,197.3,197.12,24.31706029]
[1735057908250,21.77836029,197.27,197.12,21.77836029]
[1735057908451,3.1761,197.26,197.12,21.77836029]
[1735057909256,2.538,197.18,197.12,21.77836029]
[1735057909461,3.1761,197.26,197.12,21.77836029]
[1735057910060,2.5382,197.17,197.12,21.77836029]
[1735057910262,2.5382,197.17,197.11,3.2565]
[1735057910457,21.77836029,197.23,197.01,1.1153]
[1735057910663,2.5391,197.09,197.03,21.77836029]
[1735057910961,21.77836029,197.15,196.99,21.77836029]
[1735057911266,2.5399,197.03,196.96,1.6114]
[1735057912365,2.5401,197.02,196.96,1.6114]
[1735057912562,1.5906,197.13,196.96,1.6114]
[1735057913160,1.5906,197.13,196.97,2.5407]
[1735057913363,1.5906,197.13,196.99,21.77836029]
[1735057913768,2.5389,197.11,197.03,24.31816029]
[1735057914161,3.1321,197.14,197.03,24.31816029]
[1735057916370,2.5391,197.1,197.03,24.31816029]
[1735057916563,1.6281,197.18,197.03,21.77836029]
[1735057916758,3.153,197.18,197.03,21.77836029]
[1735057917167,3.153,197.18,196.99,21.77836029]
[1735057917866,2.5393,197.08,197.0,2.5402]
[1735057918171,21.77836029,197.12,196.96,1.6114]
[1735057918364,21.77836029,197.08,196.79,206.48981416]
[1735057918667,3.1289,197.07,196.89,4.1998]
[1735057919671,2.54,197.03,196.95,2.5409]
[1735057920371,3.1289,197.07,196.93,2.5411]
[1735057920569,1.5249,197.07,196.89,4.1998]
[1735057920769,1.5249,197.07,196.95,21.77836029]
[1735057921674,2.5399,197.04,196.98,2.5405]
[1735057921864,1.5249,197.07,196.89,4.1998]
[1735057922067,1.5249,197.07,196.9,21.77836029]
[1735057922272,1.6494,197.06,196.9,21.77836029]
[1735057922466,1.6494,197.06,196.91,2.5414]
[1735057922974,2.5407,196.97,196.91,2.5414]
[1735057923171,21.77836029,197.04,196.85,1.01600203]
[1735057923470,21.77836029,197.0,196.8,21.77836029]
[1735057923674,1.6493,196.99,196.8,21.77836029]
[1735057924769,2.5418,196.89,196.82,4.68636874]
[1735057925067,1.6493,196.99,196.82,2.14376874]
[1735057925266,21.77836029,196.95,196.82,2.14376874]
[1735057925466,2.5421,196.86,196.82,2.14376874]
[1735057927176,24.86506029,196.94,196.82,2.14376874]
[1735057927878,2.5425,196.84,196.82,2.14376874]
[1735057928077,24.86506029,196.94,196.82,2.14376874]
[1735057931074,21.77836029,196.86,196.82,2.14376874]
[1735057931283,21.77836029,196.92,196.82,2.14376874]
[1735057931476,2.5413,196.92,196.82,23.92212903]
[1735057931681,1.527,196.94,196.82,23.92212903]
[1735057931879,23.42766029,196.99,196.83,3.2015]
[1735057932075,23.42766029,196.99,196.83,4.325]
[1735057933478,2.5408,196.96,196.88,2.5417]
[1735057933680,23.42766029,196.99,196.83,4.325]
[1735057934087,2.5407,196.97,196.89,2.5417]
[1735057934780,23.42766029,196.99,196.85,2.5421]
[1735057935281,2.5411,196.95,196.85,2.5422]
[1735057935484,23.42766029,196.99,196.83,4.325]
[1735057936581,2.5413,196.93,196.86,2.5421]
[1735057937079,2.5413,196.92,196.86,2.5421]
[1735057937476,23.42766029,196.99,196.85,21.77836029]
[1735057937477,1.6493,196.99,196.85,21.77836029]
[1735057937676,23.42766029,196.99,196.83,4.325]
[1735057938083,23.42766029,196.99,196.83,3.2015]
[1735057938281,21.77836029,196.95,196.82,2.14376874]
[1735057938483,1.5968,196.94,196.82,2.14376874]
[1735057938681,3.2316,196.94,196.82,2.14376874]
[1735057938892,2.5423,196.85,196.82,2.14376874]
[1735057940386,3.2316,196.94,196.82,2.14376874]
[1735057941288,2.5416,196.91,196.85,2.5422]
[1735057941687,2.5414,196.92,196.86,2.542]
[1735057941885,3.2316,196.94,196.82,3.64116874]
[1735057942287,3.2316,196.94,196.82,2.14376874]
[1735057942989,2.542,196.87,196.82,2.14376874]
[1735057943189,3.2316,196.94,196.82,2.14376874]
[1735057943590,3.2316,196.94,196.82,1.59376873]
[1735057944188,3.2316,196.94,196.82,4.13636873]
[1735057945595,2.5418,196.89,196.82,4.13636873]
[1735057946397,3.2316,196.94,196.82,1.59376873]
[1735057946594,2.5415,196.91,196.84,2.5423]
[1735057946895,3.2316,196.94,196.83,21.77836029]
[1735057947292,3.2316,196.94,196.86,2.5421]
[1735057948497,2.5414,196.92,196.86,2.5421]
[1735057949197,3.2316,196.94,196.83,2.5424]
[1735057949493,3.2316,196.94,196.82,3.13056873]
[1735057949697,2.5422,196.86,196.82,1.59376873]
[1735057949900,21.77836029,196.93,196.82,1.59376873]
[1735057950903,2.5422,196.86,196.82,1.59376873]
[1735057951597,3.2316,196.94,196.82,1.59376873]
[1735057952198,2.5422,196.86,196.82,1.59376873]
[1735057952598,3.2316,196.94,196.82,1.59376873]
[1735057952794,2.5422,196.85,196.82,1.59376873]
[1735057952995,21.77836029,196.93,196.82,1.59376873]
[1735057953395,2.5425,196.83,196.82,1.59376873]
[1735057953598,3.2316,196.94,196.82,1.59376873]
[1735057953803,2.5424,196.84,196.82,1.59376873]
[1735057953999,21.77836029,196.93,196.82,1.59376873]
[1735057954907,21.77836029,196.83,196.66,56.0132861]
[1735057955100,21.77836029,196.79,196.66,56.0132861]
[1735057955409,2.5436,196.75,196.66,58.5578861]
[1735057955606,21.77836029,196.79,196.66,56.0132861]
[1735057956007,21.77836029,196.75,196.66,56.0132861]
[1735057956504,2.5438,196.73,196.65,2.5448]
[1735057956905,21.77836029,196.79,196.65,2.5448]
[1735057957407,21.77836029,196.79,196.51,56.0132861]
[1735057957606,21.77836029,196.79,196.5,21.77836029]
[1735057957806,21.77836029,196.79,196.59,21.77836029]
[1735057958508,1.5401,196.82,196.63,21.77836029]
[1735057958806,2.5432,196.78,196.7,2.5442]
[1735057959000,1.5401,196.82,196.68,1.5225]
[1735057959406,2.5431,196.79,196.71,2.544]
[1735057959707,2.5431,196.79,196.68,1.5225]
[1735057959908,2.5431,196.79,196.68,3.1752]
[1735057960103,2.5429,196.8,196.72,2.5439]
[1735057960303,1.5401,196.82,196.68,3.1752]
[1735057960611,2.5424,196.84,196.73,2.5437]
[1735057960804,3.1455,196.88,196.71,21.77836029]
[1735057961902,2.5431,196.79,196.73,2.5437]
[1735057962099,3.1455,196.88,196.73,2.5437]
[1735057963102,2.5424,196.84,196.73,2.5437]
[1735057963410,21.77836029,196.86,196.68,3.1752]
[1735057963704,21.77836029,196.82,196.68,1.5225]
[1735057964105,21.77836029,196.78,196.68,1.5225]
[1735057965410,2.5439,196.73,196.68,1.5225]